[Event "Titled Tuesday Blitz February 28 Late 2023"]
[White "Holt, Conrad"]
[Black "Colas, Joshua"]
[WhiteFideId "2034387"]
[BlackFideId "2044447"]
[WhiteElo "2592"]
[BlackElo "2347"]
[Result "1-0"]
[Round "05"]
[TimeControl "180+2"]
[Date "2023.02.28"]
[WhiteClock "0:00:28"]
[BlackClock "0:00:03"]

1. d4 {[%clk 0:02:56]}  Nf6 {[%clk 0:02:11]} 2. c4 {[%clk 0:02:55]}  e6 {[%clk 0:02:11]} 3. Nc3 {[%clk 0:02:55]}  Bb4 {[%clk 0:02:11]} 4. Qc2 {[%clk 0:02:55]}  O-O {[%clk 0:02:09]} 5. e4 {[%clk 0:02:55]}  d5 {[%clk 0:02:09]} 6. e5 {[%clk 0:02:56]}  Ne4 {[%clk 0:02:10]} 7. Bd3 {[%clk 0:02:56]}  c5 {[%clk 0:02:00]} 8. Nf3 {[%clk 0:02:56]}  cxd4 {[%clk 0:01:58]} 9. Nxd4 {[%clk 0:02:56]}  Nd7 {[%clk 0:01:58]} 10. Bf4 {[%clk 0:02:56]}  Qh4 {[%clk 0:01:56]} 11. g3 {[%clk 0:02:55]}  Qh5 {[%clk 0:01:49]} 12. cxd5 {[%clk 0:02:51]}  exd5 {[%clk 0:01:36]} 13. f3 {[%clk 0:02:51]}  Nxc3 {[%clk 0:01:25]} 14. bxc3 {[%clk 0:02:50]}  Ba5 {[%clk 0:01:26]} 15. g4 {[%clk 0:02:49]}  Qh3 {[%clk 0:01:22]} 16. Kf2 {[%clk 0:02:45]}  Bc7 {[%clk 0:01:14]} 17. Rae1 {[%clk 0:02:38]}  h5 {[%clk 0:01:08]} 18. Bf1 {[%clk 0:02:23]}  Qh4+ {[%clk 0:01:07]} 19. Bg3 {[%clk 0:02:22]}  Qd8 {[%clk 0:00:45]} 20. gxh5 {[%clk 0:02:20]}  Re8 {[%clk 0:00:44]} 21. e6 {[%clk 0:02:03]}  fxe6 {[%clk 0:00:28]} 22. h6 {[%clk 0:01:46]}  e5 {[%clk 0:00:25]} 23. Qg6 {[%clk 0:01:42]}  Re7 {[%clk 0:00:21]} 24. Nf5 {[%clk 0:01:24]}  Nf8 {[%clk 0:00:21]} 25. Nxe7+ {[%clk 0:01:22]}  Qxe7 {[%clk 0:00:22]} 26. Qxg7+ {[%clk 0:01:22]}  Qxg7 {[%clk 0:00:22]} 27. hxg7 {[%clk 0:01:23]}  Ng6 {[%clk 0:00:22]} 28. Bd3 {[%clk 0:01:22]}  Kxg7 {[%clk 0:00:15]} 29. Bxg6 {[%clk 0:01:17]}  Bb6+ {[%clk 0:00:15]} 30. Kg2 {[%clk 0:01:16]}  Kxg6 {[%clk 0:00:16]} 31. Rxe5 {[%clk 0:01:16]}  Bf5 {[%clk 0:00:15]} 32. Rxd5 {[%clk 0:01:16]}  Re8 {[%clk 0:00:14]} 33. Re1 {[%clk 0:01:16]}  Rh8 {[%clk 0:00:14]} 34. Rd6+ {[%clk 0:01:14]}  Kf7 {[%clk 0:00:15]} 35. Rd5 {[%clk 0:01:03]}  Bh3+ {[%clk 0:00:15]} 36. Kh1 {[%clk 0:01:04]}  Be6 {[%clk 0:00:14]} 37. Rd2 {[%clk 0:01:00]}  Bc4 {[%clk 0:00:13]} 38. Bf2 {[%clk 0:00:59]}  Bc7 {[%clk 0:00:12]} 39. Bd4 {[%clk 0:00:58]}  Rh3 {[%clk 0:00:11]} 40. Rg2 {[%clk 0:00:56]}  Bf4 {[%clk 0:00:09]} 41. Bxa7 {[%clk 0:00:40]}  Bd5 {[%clk 0:00:09]} 42. Kg1 {[%clk 0:00:31]}  Bxf3 {[%clk 0:00:09]} 43. Rf2 {[%clk 0:00:29]}  Kg6 {[%clk 0:00:04]} 44. Ref1 {[%clk 0:00:28]}  Bxh2+ {[%clk 0:00:03]} 45. Rxh2 {[%clk 0:00:28]} 1-0


[Site "https://www.chess.com"]

[Event "Titled Tuesday Blitz February 28 Late 2023"]
[White "Fier, Alexandr"]
[Black "Atanasov, Anthony"]
[WhiteFideId "2107139"]
[BlackFideId "2623897"]
[WhiteElo "2610"]
[BlackElo "2070"]
[Result "1-0"]
[Round "05"]
[TimeControl "180+2"]
[Date "2023.02.28"]
[WhiteClock "0:02:22"]
[BlackClock "0:00:47"]

1. d4 {[%clk 0:03:00]}  Nf6 {[%clk 0:02:59]} 2. Bg5 {[%clk 0:03:00]}  Ne4 {[%clk 0:02:59]} 3. Bf4 {[%clk 0:03:00]}  Nc6 {[%clk 0:02:59]} 4. e3 {[%clk 0:02:56]}  d5 {[%clk 0:02:47]} 5. Bd3 {[%clk 0:02:55]}  Bf5 {[%clk 0:02:22]} 6. Nd2 {[%clk 0:02:54]}  e6 {[%clk 0:02:12]} 7. Bxe4 {[%clk 0:02:52]}  Bxe4 {[%clk 0:02:11]} 8. Nxe4 {[%clk 0:02:51]}  dxe4 {[%clk 0:02:12]} 9. Ne2 {[%clk 0:02:52]}  Bd6 {[%clk 0:02:11]} 10. Bg3 {[%clk 0:02:51]}  O-O {[%clk 0:02:09]} 11. c4 {[%clk 0:02:49]}  Nb4 {[%clk 0:02:02]} 12. O-O {[%clk 0:02:46]}  Nd3 {[%clk 0:02:02]} 13. Nc3 {[%clk 0:02:45]}  f5 {[%clk 0:02:02]} 14. c5 {[%clk 0:02:42]}  Bxg3 {[%clk 0:02:00]} 15. fxg3 {[%clk 0:02:38]}  e5 {[%clk 0:01:45]} 16. dxe5 {[%clk 0:02:35]}  Kh8 {[%clk 0:01:45]} 17. g4 {[%clk 0:02:27]}  Qg5 {[%clk 0:01:43]} 18. Qe2 {[%clk 0:02:26]}  fxg4 {[%clk 0:01:22]} 19. Nxe4 {[%clk 0:02:24]}  Rxf1+ {[%clk 0:01:10]} 20. Rxf1 {[%clk 0:02:23]}  Qd8 {[%clk 0:00:47]} 21. Rd1 {[%clk 0:02:22]} 1-0


[Site "https://www.chess.com"]

[Event "Titled Tuesday Blitz February 28 Late 2023"]
[White "Milikow, Yoav"]
[Black "Sztokbant, Bernardo Vainzoff"]
[WhiteFideId "2822237"]
[BlackFideId "2115956"]
[WhiteElo "2410"]
[BlackElo "2222"]
[Result "1-0"]
[Round "05"]
[TimeControl "180+2"]
[Date "2023.02.28"]
[WhiteClock "0:00:16"]
[BlackClock "0:00:02"]

1. d4 {[%clk 0:02:57]}  Nf6 {[%clk 0:02:58]} 2. c4 {[%clk 0:02:57]}  e6 {[%clk 0:02:58]} 3. Nc3 {[%clk 0:02:56]}  d5 {[%clk 0:02:59]} 4. Nf3 {[%clk 0:02:55]}  Be7 {[%clk 0:02:59]} 5. cxd5 {[%clk 0:02:55]}  exd5 {[%clk 0:02:59]} 6. Bf4 {[%clk 0:02:55]}  c6 {[%clk 0:02:59]} 7. e3 {[%clk 0:02:55]}  Bd6 {[%clk 0:03:00]} 8. Bxd6 {[%clk 0:02:53]}  Qxd6 {[%clk 0:03:00]} 9. h3 {[%clk 0:02:49]}  O-O {[%clk 0:03:00]} 10. Bd3 {[%clk 0:02:49]}  Re8 {[%clk 0:02:59]} 11. Qc2 {[%clk 0:02:49]}  Nbd7 {[%clk 0:02:59]} 12. O-O {[%clk 0:02:49]}  Nf8 {[%clk 0:02:58]} 13. a3 {[%clk 0:02:46]}  a5 {[%clk 0:02:58]} 14. Rab1 {[%clk 0:02:44]}  Be6 {[%clk 0:02:49]} 15. Rfc1 {[%clk 0:02:28]}  N6d7 {[%clk 0:02:44]} 16. Na4 {[%clk 0:02:21]}  g6 {[%clk 0:02:39]} 17. Nc5 {[%clk 0:02:11]}  Nxc5 {[%clk 0:02:39]} 18. dxc5 {[%clk 0:02:12]}  Qc7 {[%clk 0:02:30]} 19. Qc3 {[%clk 0:01:58]}  Nd7 {[%clk 0:02:27]} 20. b4 {[%clk 0:01:53]}  axb4 {[%clk 0:02:28]} 21. axb4 {[%clk 0:01:54]}  f6 {[%clk 0:02:27]} 22. Nd4 {[%clk 0:01:53]}  Ne5 {[%clk 0:02:19]} 23. Bf1 {[%clk 0:01:53]}  Bf7 {[%clk 0:02:16]} 24. Ra1 {[%clk 0:01:50]}  Kg7 {[%clk 0:02:14]} 25. b5 {[%clk 0:01:44]}  Qe7 {[%clk 0:02:04]} 26. b6 {[%clk 0:01:37]}  Nd7 {[%clk 0:02:01]} 27. Nb3 {[%clk 0:01:16]}  Qe5 {[%clk 0:01:57]} 28. Qd4 {[%clk 0:01:15]}  g5 {[%clk 0:01:46]} 29. Na5 {[%clk 0:01:08]}  Rab8 {[%clk 0:01:32]} 30. Nb3 {[%clk 0:01:02]}  Ra8 {[%clk 0:01:31]} 31. Ra7 {[%clk 0:01:00]}  Rxa7 {[%clk 0:01:28]} 32. bxa7 {[%clk 0:01:01]}  Ra8 {[%clk 0:01:28]} 33. Ra1 {[%clk 0:00:59]}  Bg6 {[%clk 0:01:21]} 34. Qb4 {[%clk 0:00:56]}  Qc7 {[%clk 0:01:17]} 35. Nd4 {[%clk 0:00:54]}  Kf7 {[%clk 0:01:09]} 36. Be2 {[%clk 0:00:43]}  h5 {[%clk 0:01:07]} 37. Qc3 {[%clk 0:00:33]}  Qe5 {[%clk 0:01:01]} 38. Ra4 {[%clk 0:00:22]}  Qe7 {[%clk 0:01:00]} 39. Ra5 {[%clk 0:00:20]}  Qe5 {[%clk 0:00:50]} 40. Qb2 {[%clk 0:00:19]}  Qc7 {[%clk 0:00:46]} 41. Qb4 {[%clk 0:00:19]}  Ne5 {[%clk 0:00:34]} 42. Ra3 {[%clk 0:00:18]}  Nd7 {[%clk 0:00:32]} 43. Nb3 {[%clk 0:00:17]}  b6 {[%clk 0:00:28]} 44. cxb6 {[%clk 0:00:17]}  Qxb6 {[%clk 0:00:29]} 45. Qxb6 {[%clk 0:00:17]}  Nxb6 {[%clk 0:00:30]} 46. Nc5 {[%clk 0:00:17]}  Bf5 {[%clk 0:00:28]} 47. Ra6 {[%clk 0:00:17]}  Nc4 {[%clk 0:00:27]} 48. Bxc4 {[%clk 0:00:16]}  dxc4 {[%clk 0:00:28]} 49. Na4 {[%clk 0:00:17]}  Bc8 {[%clk 0:00:23]} 50. Ra5 {[%clk 0:00:17]}  Bb7 {[%clk 0:00:16]} 51. Nb6 {[%clk 0:00:16]}  Rd8 {[%clk 0:00:16]} 52. Nxc4 {[%clk 0:00:14]}  Ke6 {[%clk 0:00:16]} 53. Nb6 {[%clk 0:00:15]}  Rd1+ {[%clk 0:00:15]} 54. Kh2 {[%clk 0:00:15]}  Rd2 {[%clk 0:00:16]} 55. f3 {[%clk 0:00:14]}  Re2 {[%clk 0:00:05]} 56. e4 {[%clk 0:00:14]}  g4 {[%clk 0:00:04]} 57. hxg4 {[%clk 0:00:14]}  hxg4 {[%clk 0:00:05]} 58. fxg4 {[%clk 0:00:14]}  Rxe4 {[%clk 0:00:05]} 59. Na4 {[%clk 0:00:14]}  Kd6 {[%clk 0:00:03]} 60. Nc5 {[%clk 0:00:14]}  Ra4 {[%clk 0:00:02]} 61. Nxb7+ {[%clk 0:00:14]}  Kc7 {[%clk 0:00:02]} 62. Rxa4 {[%clk 0:00:15]}  Kxb7 {[%clk 0:00:02]} 63. a8=Q+ {[%clk 0:00:16]}  Kb6 {[%clk 0:00:02]} 64. Rc4 {[%clk 0:00:16]} 1-0


[Site "https://www.chess.com"]

[Event "Titled Tuesday Blitz February 28 Late 2023"]
[White "Martin Carmona, Gaston Manuel"]
[Black "Pakleza, Zbigniew"]
[WhiteFideId "22284567"]
[BlackFideId "1119290"]
[WhiteElo "2245"]
[BlackElo "2410"]
[Result "0-1"]
[Round "05"]
[TimeControl "180+2"]
[Date "2023.02.28"]
[WhiteClock "0:00:02"]
[BlackClock "0:00:02"]

1. e4 {[%clk 0:03:00]}  d6 {[%clk 0:02:59]} 2. d4 {[%clk 0:03:00]}  Nf6 {[%clk 0:03:00]} 3. Nc3 {[%clk 0:03:00]}  c6 {[%clk 0:03:00]} 4. f3 {[%clk 0:02:59]}  Qb6 {[%clk 0:03:00]} 5. Bc4 {[%clk 0:02:53]}  e6 {[%clk 0:02:59]} 6. Bb3 {[%clk 0:02:53]}  d5 {[%clk 0:02:59]} 7. e5 {[%clk 0:02:53]}  Nfd7 {[%clk 0:03:00]} 8. Be3 {[%clk 0:02:25]}  c5 {[%clk 0:02:58]} 9. Na4 {[%clk 0:02:03]}  Qa5+ {[%clk 0:02:56]} 10. Bd2 {[%clk 0:02:02]}  Qc7 {[%clk 0:02:55]} 11. Nxc5 {[%clk 0:02:02]}  Nxc5 {[%clk 0:02:53]} 12. dxc5 {[%clk 0:02:02]}  Qxe5+ {[%clk 0:02:52]} 13. Qe2 {[%clk 0:02:00]}  Qxe2+ {[%clk 0:02:35]} 14. Nxe2 {[%clk 0:02:01]}  Bxc5 {[%clk 0:02:36]} 15. c4 {[%clk 0:01:49]}  dxc4 {[%clk 0:02:32]} 16. Bxc4 {[%clk 0:01:50]}  Nc6 {[%clk 0:02:26]} 17. a3 {[%clk 0:01:45]}  Ke7 {[%clk 0:02:08]} 18. Bc3 {[%clk 0:01:42]}  f6 {[%clk 0:01:59]} 19. b4 {[%clk 0:01:42]}  Bd6 {[%clk 0:01:57]} 20. Rd1 {[%clk 0:01:30]}  Be5 {[%clk 0:01:45]} 21. b5 {[%clk 0:01:11]}  Bxc3+ {[%clk 0:01:43]} 22. Nxc3 {[%clk 0:01:12]}  Ne5 {[%clk 0:01:27]} 23. Be2 {[%clk 0:01:12]}  Rd8 {[%clk 0:01:22]} 24. f4 {[%clk 0:01:10]}  Rxd1+ {[%clk 0:01:20]} 25. Kxd1 {[%clk 0:01:10]}  Ng6 {[%clk 0:01:16]} 26. g3 {[%clk 0:01:11]}  Bd7 {[%clk 0:01:15]} 27. Bf3 {[%clk 0:01:11]}  Rc8 {[%clk 0:01:12]} 28. Kd2 {[%clk 0:01:11]}  b6 {[%clk 0:01:12]} 29. Re1 {[%clk 0:01:09]}  Kf7 {[%clk 0:01:04]} 30. h4 {[%clk 0:01:06]}  Ne7 {[%clk 0:01:02]} 31. h5 {[%clk 0:01:00]}  Nf5 {[%clk 0:00:55]} 32. g4 {[%clk 0:00:58]}  Nd4 {[%clk 0:00:54]} 33. Be4 {[%clk 0:00:55]}  g6 {[%clk 0:00:40]} 34. a4 {[%clk 0:00:54]}  Nb3+ {[%clk 0:00:37]} 35. Kd3 {[%clk 0:00:47]}  Nc5+ {[%clk 0:00:35]} 36. Kd4 {[%clk 0:00:46]}  e5+ {[%clk 0:00:24]} 37. fxe5 {[%clk 0:00:45]}  fxe5+ {[%clk 0:00:25]} 38. Kxe5 {[%clk 0:00:42]}  Bxg4 {[%clk 0:00:17]} 39. hxg6+ {[%clk 0:00:37]}  hxg6 {[%clk 0:00:18]} 40. Bd5+ {[%clk 0:00:37]}  Kg7 {[%clk 0:00:18]} 41. Kd6 {[%clk 0:00:30]}  Kh6 {[%clk 0:00:07]} 42. Re7 {[%clk 0:00:21]}  Rd8+ {[%clk 0:00:04]} 43. Kc7 {[%clk 0:00:13]}  Rf8 {[%clk 0:00:04]} 44. Ne4 {[%clk 0:00:06]}  Nxa4 {[%clk 0:00:04]} 45. Kb7 {[%clk 0:00:05]}  Bf5 {[%clk 0:00:04]} 46. Nd6 {[%clk 0:00:04]}  Nc3 {[%clk 0:00:03]} 47. Bc6 {[%clk 0:00:04]}  Bd3 {[%clk 0:00:03]} 48. Kxa7 {[%clk 0:00:04]}  Rf6 {[%clk 0:00:02]} 49. Nc8 {[%clk 0:00:03]}  Bxb5 {[%clk 0:00:02]} 50. Bxb5 {[%clk 0:00:03]}  Nxb5+ {[%clk 0:00:03]} 51. Kb7 {[%clk 0:00:03]}  Nd4 {[%clk 0:00:03]} 52. Nxb6 {[%clk 0:00:02]}  Nf5 {[%clk 0:00:03]} 53. Rc7 {[%clk 0:00:02]}  Nd6+ {[%clk 0:00:02]} 54. Kb8 {[%clk 0:00:02]}  Rf8+ {[%clk 0:00:02]} 55. Nc8 {[%clk 0:00:02]}  Nxc8 {[%clk 0:00:02]} 0-1


[Site "https://www.chess.com"]

[Event "Titled Tuesday Blitz February 28 Late 2023"]
[White "Seletsky, Grigory"]
[Black "Boyer, Mahel"]
[WhiteFideId "14112191"]
[BlackFideId "45102422"]
[WhiteElo "2490"]
[BlackElo "2434"]
[Result "0-1"]
[Round "05"]
[TimeControl "180+2"]
[Date "2023.02.28"]
[WhiteClock "0:02:04"]
[BlackClock "0:02:19"]

1. d4 {[%clk 0:03:00]}  c6 {[%clk 0:02:46]} 2. e4 {[%clk 0:02:59]}  d5 {[%clk 0:02:47]} 3. Nc3 {[%clk 0:02:58]}  dxe4 {[%clk 0:02:46]} 4. Nxe4 {[%clk 0:02:58]}  Bf5 {[%clk 0:02:47]} 5. Ng3 {[%clk 0:02:58]}  Bg6 {[%clk 0:02:47]} 6. Nf3 {[%clk 0:02:59]}  Nd7 {[%clk 0:02:47]} 7. Ne2 {[%clk 0:02:59]}  Bh5 {[%clk 0:02:45]} 8. Nf4 {[%clk 0:02:57]}  Bxf3 {[%clk 0:02:45]} 9. Qxf3 {[%clk 0:02:57]}  e5 {[%clk 0:02:46]} 10. dxe5 {[%clk 0:02:56]}  Nxe5 {[%clk 0:02:47]} 11. Qe2 {[%clk 0:02:56]}  Qe7 {[%clk 0:02:44]} 12. Bd2 {[%clk 0:02:55]}  O-O-O {[%clk 0:02:43]} 13. O-O-O {[%clk 0:02:56]}  Nf6 {[%clk 0:02:42]} 14. h3 {[%clk 0:02:53]}  g6 {[%clk 0:02:40]} 15. Qe3 {[%clk 0:02:53]}  Bh6 {[%clk 0:02:38]} 16. Qxa7 {[%clk 0:02:50]}  Rxd2 {[%clk 0:02:38]} 17. Rxd2 {[%clk 0:02:43]}  Bxf4 {[%clk 0:02:38]} 18. Qa8+ {[%clk 0:02:41]}  Kc7 {[%clk 0:02:37]} 19. Qxh8 {[%clk 0:02:35]}  Nf3 {[%clk 0:02:28]} 20. Bd3 {[%clk 0:02:16]}  Nxd2 {[%clk 0:02:28]} 21. Kd1 {[%clk 0:02:15]}  Nde4 {[%clk 0:02:25]} 22. Bxe4 {[%clk 0:02:07]}  Nxe4 {[%clk 0:02:23]} 23. Qd4 {[%clk 0:02:04]}  c5 {[%clk 0:02:19]} 0-1


[Site "https://www.chess.com"]

[Event "Titled Tuesday Blitz February 28 Late 2023"]
[White "Hambleton, Aman"]
[Black "Leschinsky, Gary"]
[WhiteFideId "2606577"]
[BlackFideId "30951321"]
[WhiteElo "2511"]
[BlackElo "1855"]
[Result "0-1"]
[Round "05"]
[TimeControl "180+2"]
[Date "2023.02.28"]
[WhiteClock "0:00:01"]
[BlackClock "0:00:07"]

1. d4 {[%clk 0:03:00]}  Nf6 {[%clk 0:02:59]} 2. Bf4 {[%clk 0:02:49]}  d5 {[%clk 0:02:58]} 3. e3 {[%clk 0:02:42]}  c5 {[%clk 0:02:57]} 4. c3 {[%clk 0:02:42]}  Nc6 {[%clk 0:02:56]} 5. Nd2 {[%clk 0:02:41]}  cxd4 {[%clk 0:02:56]} 6. exd4 {[%clk 0:02:42]}  Bf5 {[%clk 0:02:57]} 7. Qb3 {[%clk 0:02:41]}  Qc8 {[%clk 0:02:56]} 8. Ngf3 {[%clk 0:02:41]}  e6 {[%clk 0:02:56]} 9. h3 {[%clk 0:02:40]}  h6 {[%clk 0:02:56]} 10. Be2 {[%clk 0:02:40]}  Be7 {[%clk 0:02:56]} 11. O-O {[%clk 0:02:41]}  O-O {[%clk 0:02:57]} 12. Rfe1 {[%clk 0:02:40]}  a6 {[%clk 0:02:57]} 13. a4 {[%clk 0:02:40]}  Bd8 {[%clk 0:02:19]} 14. Ne5 {[%clk 0:02:29]}  Bc7 {[%clk 0:02:16]} 15. Ndf3 {[%clk 0:01:28]}  Rb8 {[%clk 0:02:10]} 16. Qa3 {[%clk 0:01:16]}  Ne4 {[%clk 0:01:51]} 17. Nxc6 {[%clk 0:01:08]}  bxc6 {[%clk 0:01:50]} 18. Bxc7 {[%clk 0:00:50]}  Qxc7 {[%clk 0:01:50]} 19. Bxa6 {[%clk 0:00:50]}  Qb6 {[%clk 0:01:37]} 20. Bd3 {[%clk 0:00:27]}  Qxb2 {[%clk 0:01:37]} 21. Qxb2 {[%clk 0:00:28]}  Rxb2 {[%clk 0:01:37]} 22. Bxe4 {[%clk 0:00:24]}  Bxe4 {[%clk 0:01:34]} 23. Ne5 {[%clk 0:00:25]}  Rc8 {[%clk 0:01:09]} 24. a5 {[%clk 0:00:20]}  Rb7 {[%clk 0:01:00]} 25. Ra3 {[%clk 0:00:07]}  f6 {[%clk 0:01:00]} 26. Ng4 {[%clk 0:00:07]}  Ra8 {[%clk 0:00:57]} 27. f3 {[%clk 0:00:06]}  Bf5 {[%clk 0:00:56]} 28. Ne3 {[%clk 0:00:07]}  Bg6 {[%clk 0:00:54]} 29. Rea1 {[%clk 0:00:04]}  Kf7 {[%clk 0:00:52]} 30. Nf1 {[%clk 0:00:03]}  e5 {[%clk 0:00:49]} 31. Nd2 {[%clk 0:00:03]}  Bd3 {[%clk 0:00:47]} 32. Nb3 {[%clk 0:00:03]}  Bc4 {[%clk 0:00:44]} 33. Nc5 {[%clk 0:00:03]}  Rba7 {[%clk 0:00:45]} 34. a6 {[%clk 0:00:02]}  Ke7 {[%clk 0:00:44]} 35. Kf2 {[%clk 0:00:03]}  Kd6 {[%clk 0:00:45]} 36. Ke3 {[%clk 0:00:02]}  g5 {[%clk 0:00:46]} 37. g3 {[%clk 0:00:02]}  h5 {[%clk 0:00:45]} 38. h4 {[%clk 0:00:03]}  gxh4 {[%clk 0:00:45]} 39. gxh4 {[%clk 0:00:04]}  Rg8 {[%clk 0:00:44]} 40. Rb1 {[%clk 0:00:03]}  Rg2 {[%clk 0:00:39]} 41. Re1 {[%clk 0:00:03]}  Rh2 {[%clk 0:00:35]} 42. Nb7+ {[%clk 0:00:02]}  Ke7 {[%clk 0:00:29]} 43. Nc5 {[%clk 0:00:03]}  Kd6 {[%clk 0:00:26]} 44. Raa1 {[%clk 0:00:02]}  Rxh4 {[%clk 0:00:24]} 45. Kf2 {[%clk 0:00:02]}  Rh2+ {[%clk 0:00:24]} 46. Kg3 {[%clk 0:00:02]}  Rc2 {[%clk 0:00:20]} 47. Reb1 {[%clk 0:00:02]}  Rg7+ {[%clk 0:00:19]} 48. Kh3 {[%clk 0:00:02]}  Rxc3 {[%clk 0:00:15]} 49. Rf1 {[%clk 0:00:01]}  Bxf1+ {[%clk 0:00:14]} 50. Rxf1 {[%clk 0:00:02]}  Ra3 {[%clk 0:00:14]} 51. Kh4 {[%clk 0:00:01]}  exd4 {[%clk 0:00:14]} 52. Nb7+ {[%clk 0:00:01]}  Rxb7 {[%clk 0:00:11]} 53. axb7 {[%clk 0:00:02]}  Rb3 {[%clk 0:00:12]} 54. Kxh5 {[%clk 0:00:01]}  Rxb7 {[%clk 0:00:12]} 55. Kg6 {[%clk 0:00:02]}  c5 {[%clk 0:00:11]} 56. Kxf6 {[%clk 0:00:02]}  Rb8 {[%clk 0:00:11]} 57. f4 {[%clk 0:00:02]}  Rf8+ {[%clk 0:00:12]} 58. Kg7 {[%clk 0:00:03]}  Rf5 {[%clk 0:00:10]} 59. Kg6 {[%clk 0:00:03]}  Rf8 {[%clk 0:00:10]} 60. Kg7 {[%clk 0:00:03]}  Ra8 {[%clk 0:00:10]} 61. f5 {[%clk 0:00:04]}  d3 {[%clk 0:00:10]} 62. f6 {[%clk 0:00:04]}  c4 {[%clk 0:00:11]} 63. f7 {[%clk 0:00:03]}  c3 {[%clk 0:00:11]} 64. Re1 {[%clk 0:00:02]}  Ra7 {[%clk 0:00:10]} 65. Kf6 {[%clk 0:00:02]}  Rxf7+ {[%clk 0:00:10]} 66. Kxf7 {[%clk 0:00:03]}  d2 {[%clk 0:00:11]} 67. Rd1 {[%clk 0:00:02]}  c2 {[%clk 0:00:11]} 68. Rxd2 {[%clk 0:00:03]}  c1=Q {[%clk 0:00:12]} 69. Rf2 {[%clk 0:00:03]}  Qg5 {[%clk 0:00:10]} 70. Kf8 {[%clk 0:00:01]}  Qh6+ {[%clk 0:00:10]} 71. Kg8 {[%clk 0:00:01]}  Qg6+ {[%clk 0:00:10]} 72. Kh8 {[%clk 0:00:01]}  Qh5+ {[%clk 0:00:10]} 73. Kg8 {[%clk 0:00:02]}  Qg4+ {[%clk 0:00:11]} 74. Kf8 {[%clk 0:00:02]}  Qg5 {[%clk 0:00:08]} 75. Rf7 {[%clk 0:00:02]}  Qh6+ {[%clk 0:00:08]} 76. Kg8 {[%clk 0:00:02]}  Ke6 {[%clk 0:00:07]} 77. Rb7 {[%clk 0:00:02]}  Qg5+ {[%clk 0:00:06]} 78. Kf8 {[%clk 0:00:02]}  Qf5+ {[%clk 0:00:06]} 79. Kg8 {[%clk 0:00:02]}  Qg4+ {[%clk 0:00:06]} 80. Kf8 {[%clk 0:00:01]}  d4 {[%clk 0:00:06]} 81. Re7+ {[%clk 0:00:01]}  Kd5 {[%clk 0:00:07]} 0-1


[Site "https://www.chess.com"]

[Event "Titled Tuesday Blitz February 28 Late 2023"]
[White "Aldokhin, Ivan"]
[Black "Gadimbayli, Abdulla"]
[WhiteFideId "24115720"]
[BlackFideId "13404938"]
[WhiteElo "2322"]
[BlackElo "2390"]
[Result "1-0"]
[Round "05"]
[TimeControl "180+2"]
[Date "2023.02.28"]
[WhiteClock "0:00:02"]
[BlackClock "0:00:06"]

1. e4 {[%clk 0:02:55]}  c5 {[%clk 0:01:24]} 2. Nf3 {[%clk 0:02:54]}  d6 {[%clk 0:01:25]} 3. d4 {[%clk 0:02:55]}  cxd4 {[%clk 0:01:26]} 4. Nxd4 {[%clk 0:02:55]}  Nf6 {[%clk 0:01:26]} 5. Nc3 {[%clk 0:02:56]}  a6 {[%clk 0:01:27]} 6. Bc4 {[%clk 0:02:56]}  e6 {[%clk 0:01:27]} 7. Bb3 {[%clk 0:02:56]}  Be7 {[%clk 0:01:27]} 8. Be3 {[%clk 0:02:56]}  O-O {[%clk 0:01:27]} 9. Qe2 {[%clk 0:02:57]}  b5 {[%clk 0:01:28]} 10. O-O-O {[%clk 0:02:57]}  b4 {[%clk 0:01:23]} 11. Na4 {[%clk 0:02:57]}  Nxe4 {[%clk 0:01:24]} 12. Nb6 {[%clk 0:02:27]}  Qxb6 {[%clk 0:01:17]} 13. Nxe6 {[%clk 0:02:24]}  Nc5 {[%clk 0:01:06]} 14. Bxc5 {[%clk 0:01:38]}  dxc5 {[%clk 0:01:05]} 15. Nxf8 {[%clk 0:01:38]}  Bxf8 {[%clk 0:01:02]} 16. Bxf7+ {[%clk 0:01:36]}  Kxf7 {[%clk 0:00:59]} 17. Qf3+ {[%clk 0:01:36]}  Kg8 {[%clk 0:00:31]} 18. Qxa8 {[%clk 0:01:37]}  Be6 {[%clk 0:00:31]} 19. Rhe1 {[%clk 0:01:32]}  Bf7 {[%clk 0:00:31]} 20. Kb1 {[%clk 0:01:19]}  c4 {[%clk 0:00:21]} 21. Re3 {[%clk 0:01:06]}  c3 {[%clk 0:00:21]} 22. Rf3 {[%clk 0:00:58]}  Nc6 {[%clk 0:00:10]} 23. Rd7 {[%clk 0:00:51]}  Qb5 {[%clk 0:00:07]} 24. Rdd3 {[%clk 0:00:22]}  Ne5 {[%clk 0:00:08]} 25. Rxf7 {[%clk 0:00:16]}  Nxf7 {[%clk 0:00:08]} 26. Qd5 {[%clk 0:00:15]}  Qxd5 {[%clk 0:00:08]} 27. Rxd5 {[%clk 0:00:16]}  cxb2 {[%clk 0:00:09]} 28. Kxb2 {[%clk 0:00:11]}  Nd6 {[%clk 0:00:10]} 29. Kb3 {[%clk 0:00:10]}  Nb5 {[%clk 0:00:07]} 30. Rd8 {[%clk 0:00:08]}  Kf7 {[%clk 0:00:05]} 31. Ra8 {[%clk 0:00:08]}  Nd4+ {[%clk 0:00:06]} 32. Kb2 {[%clk 0:00:05]}  Bc5 {[%clk 0:00:04]} 33. Rxa6 {[%clk 0:00:05]}  Ne6 {[%clk 0:00:05]} 34. f3 {[%clk 0:00:04]}  Bd4+ {[%clk 0:00:06]} 35. Kc1 {[%clk 0:00:02]}  Be3+ {[%clk 0:00:05]} 36. Kd1 {[%clk 0:00:02]}  Bg1 {[%clk 0:00:05]} 37. Ra4 {[%clk 0:00:02]}  Bc5 {[%clk 0:00:05]} 38. Kd2 {[%clk 0:00:02]}  Kf6 {[%clk 0:00:04]} 39. g3 {[%clk 0:00:02]}  Bd6 {[%clk 0:00:04]} 40. Ra6 {[%clk 0:00:01]}  Ke5 {[%clk 0:00:05]} 41. Ra8 {[%clk 0:00:02]}  Nd4 {[%clk 0:00:04]} 42. Kd3 {[%clk 0:00:01]}  Nxf3 {[%clk 0:00:04]} 43. Re8+ {[%clk 0:00:01]}  Kd5 {[%clk 0:00:04]} 44. Rh8 {[%clk 0:00:02]}  Ne5+ {[%clk 0:00:04]} 45. Ke3 {[%clk 0:00:02]}  h6 {[%clk 0:00:05]} 46. Rg8 {[%clk 0:00:02]}  g5 {[%clk 0:00:06]} 47. h4 {[%clk 0:00:01]}  gxh4 {[%clk 0:00:05]} 48. gxh4 {[%clk 0:00:02]}  Be7 {[%clk 0:00:05]} 49. Rg7 {[%clk 0:00:02]}  Bxh4 {[%clk 0:00:05]} 50. Rh7 {[%clk 0:00:02]}  Bg5+ {[%clk 0:00:06]} 51. Ke2 {[%clk 0:00:03]}  Kc4 {[%clk 0:00:06]} 52. Rc7+ {[%clk 0:00:02]}  Kd4 {[%clk 0:00:07]} 53. Rb7 {[%clk 0:00:02]}  Kc3 {[%clk 0:00:06]} 54. Rc7+ {[%clk 0:00:02]}  Nc4 {[%clk 0:00:07]} 55. Kf3 {[%clk 0:00:02]}  Bc1 {[%clk 0:00:06]} 56. Ke4 {[%clk 0:00:02]}  Ba3 {[%clk 0:00:04]} 57. Kd5 {[%clk 0:00:02]}  Kxc2 {[%clk 0:00:05]} 58. Rxc4+ {[%clk 0:00:03]}  Kb2 {[%clk 0:00:05]} 59. Rh4 {[%clk 0:00:03]}  Kxa2 {[%clk 0:00:06]} 60. Rxh6 {[%clk 0:00:03]}  b3 {[%clk 0:00:07]} 61. Rh3 {[%clk 0:00:03]}  Ka1 {[%clk 0:00:07]} 62. Rxb3 {[%clk 0:00:03]}  Ka2 {[%clk 0:00:08]} 63. Kc4 {[%clk 0:00:04]}  Bb2 {[%clk 0:00:08]} 64. Rb5 {[%clk 0:00:04]}  Kb1 {[%clk 0:00:07]} 65. Kb3 {[%clk 0:00:03]}  Ba1 {[%clk 0:00:06]} 66. Rf5 {[%clk 0:00:02]} 1-0


[Site "https://www.chess.com"]